Cogmind - Beta 14 @@@ ROGUE MODE // 2024.10.18 @ 05:57:59 Player: WazdakkaGutsmek Result: Self-destructed Performance ------------- Evolutions (4) 2000 Regions Visited (11) 2200 Robots Destroyed (57) 285 Value Destroyed (1523) 1523 Prototype IDs (3) 60 Alien Tech Used (0) 0 Bonus (850) 850 TOTAL SCORE: 6918 Bonus ------- Entered Garrisons 200 Entered DSFs 500 Aligned with FarCom 300 Friendly Fire -150 Cogmind --------- Core Integrity 850/850 Matter 294/300 Energy 99/100 System Corruption 0% Temperature Cool (0) Movement Core (50) Location -6/Factory Parts ------- > --- POWER (2) -------- (None) > --- PROPULSION (4) --- (None) > --- UTILITY (6) ------ (None) > --- WEAPON (3) ------- (None) > --- INVENTORY (5) ---- Light Treads Light Treads Carbon-fiber Leg Structural Scanner Hardlight Generator Peak State ------------ > --- POWER ------------ Light Angular Momentum Engine > --- PROPULSION ------- Wheel Wheel > --- UTILITY ---------- Humpback Advanced Visual Processing Unit Medium Armor Plating > --- WEAPON ----------- AWS/Gauss > --- INVENTORY -------- Light Treads Light Treads Carbon-fiber Leg Structural Scanner Hardlight Generator Heavy Laser [Rating: 31] Favorites ----------- Power Light Angular Momentum Engine Engine Light Angular Momentum Engine Propulsion Light Treads Treads Light Treads Leg Aluminum Leg Wheel Wheel Utility Advanced Visual Processing Unit Device Hardlight Generator Storage Humpback Processor Advanced Visual Processing Unit Protection Medium Armor Plating Weapon AWS/Gauss Energy Gun Beamcaster Ballistic Gun AWS/Gauss Launcher Rocket Launcher Build | -11 -10 -10 -9 -9 -9 -8 -8 -8 -7 -7 -6 ------- Run | Yrd Mat Min Mat Min Exi Min Mat Gar Fac DSF Fac Slots Evolved 8 | . . . 2 . . . 2 . 2 . 2 Power 1 | . . . . . . . . . . . 1 Propulsion 2 | . . . . . . . 2 . . . . Utility 4 | . . . 2 . . . . . 1 . 1 Weapon 1 | . . . . . . . . . 1 . . Parts Attached 45 | . 5 5 15 8 2 6 1 1 1 1 . Power 6 | . . . 4 1 . 1 . . . . . Engine 6 | . . . 4 1 . 1 . . . . . Core . | . . . . . . . . . . . . Reactor . | . . . . . . . . . . . . Propulsion 10 | . 2 1 3 2 . 2 . . . . . Treads 3 | . . . 1 2 . . . . . . . Leg 5 | . 2 1 2 . . . . . . . . Wheel 2 | . . . . . . 2 . . . . . Hover . | . . . . . . . . . . . . Flight . | . . . . . . . . . . . . Utility 10 | . 1 . 4 1 1 2 . . . 1 . Device 4 | . . . 2 1 . 1 . . . . . Storage 1 | . . . . . 1 . . . . . . Processor 1 | . . . 1 . . . . . . . . Hackware . | . . . . . . . . . . . . Protection 4 | . 1 . 1 . . 1 . . . 1 . Artifact . | . . . . . . . . . . . . Weapon 19 | . 2 4 4 4 1 1 1 1 1 . . Energy Gun 12 | . . 4 3 2 . 1 . 1 1 . . Energy Cannon . | . . . . . . . . . . . . Ballistic Gun 3 | . 1 . . . 1 . 1 . . . . Ballistic Cannon . | . . . . . . . . . . . . Launcher 4 | . 1 . 1 2 . . . . . . . Special Weapon . | . . . . . . . . . . . . Impact Weapon . | . . . . . . . . . . . . Slashing Weapon . | . . . . . . . . . . . . Piercing Weapon . | . . . . . . . . . . . . Special Melee Weapon . | . . . . . . . . . . . . Unidentified Prototypes 3 | . . . 2 . 1 . . . . . . Corrupted Parts 3 | . . 3 . . . . . . . . . System Corruption 11 | . . 11 . . . . . . . . . Parts Lost 20 | . 1 . 2 5 . 4 . 7 . 1 . Power 2 | . . . . . . 1 . 1 . . . Propulsion 4 | . . . . . . 2 . 2 . . . Utility 6 | . . . 1 1 . 1 . 3 . . . Weapon 8 | . 1 . 1 4 . . . 1 . 1 . Highest Loss Streak 7 | . 1 . 1 4 . 2 . 7 . 1 . To Critical Strikes . | . . . . . . . . . . . . Average Slot Usage (%) 64 | . 98 99 81 88 76 52 63 43 3 6 . Engine 8 | . 14 14 10 11 11 7 9 5 . . . Treads 4 | . . . . 22 22 2 . . . . . Leg 5 | . 28 28 20 . . . . . . . . Device 4 | . . . 7 11 11 3 . . . . . Storage 11 | . 14 14 11 11 11 11 9 6 . . . Processor 8 | . . . 2 11 11 11 9 6 . . . Protection 6 | . 13 14 5 5 . 5 9 4 . . . Energy Gun 3 | . 7 . 21 10 . 1 6 1 3 5 . Ballistic Gun 9 | . 20 26 . . 6 9 2 4 . . . Peak Build Rating 31 | 6 7 14 26 22 26 29 31 31 4 9 . Average Rating 20 | 6 6 8 20 15 20 25 22 19 2 3 . On Entrance 12 | 6 6 7 14 21 11 26 20 31 . 4 . Naked Turns 107 | . . . . . . . . 57 13 19 18 Heaviest Build 226 | 11 14 17 25 26 221 226 226 226 4 6 . Greatest Support 40 | 20 20 25 30 40 40 40 20 20 3 3 3 Greatest Overweight (x) 75 | . . . 7 . 5 75 11 20 1 1 . Average Overweight (x) 4 | . . . . . . 33 10 3 . . . Largest Inventory Capacity 35 | 8 8 8 8 8 35 35 35 35 5 5 5 Average Capacity 25 | 8 8 8 8 8 17 35 35 27 5 5 5 Most Carried 8 | 6 8 8 8 6 4 7 7 6 5 5 5 Average Carried 5 | 6 7 7 6 4 4 4 6 5 5 5 5 Final Capacity 35 | 8 8 8 8 8 35 35 35 5 5 5 5 Final Carried 8 | 6 8 6 6 4 4 7 6 5 5 5 5 Class Distribution -------------------- 63% | Hauler-Mutant 34% | Mutant Dominant Class ---------------- Mutant | -10/Materials Mutant | -10/Mines Mutant | -9/Materials Mutant | -9/Mines Mutant | -9/Exiles Hauler-Mutant | -8/Mines Hauler-Mutant | -8/Materials Hauler-Mutant | -8/Garrison Mutant | -7/Factory Mutant | -7/DSF Mutant | -6/Factory Resources | -11 -10 -10 -9 -9 -9 -8 -8 -8 -7 -7 -6 ----------- Run | Yrd Mat Min Mat Min Exi Min Mat Gar Fac DSF Fac Matter Collected 904 | 200 138 50 250 109 . 143 . 5 . 9 . Remotely . | . . . . . . . . . . . . Salvage Created 2106 | . 420 87 480 343 . 659 . 117 . . . Parts 106 | . 30 6 15 13 . 42 . . . . . Haulers Intercepted 1 | . 1 . . . . . . . . . . Recyclers Shooed . | . . . . . . . . . . . . Parts Field Recycled . | . . . . . . . . . . . . Retrieved Matter . | . . . . . . . . . . . . Parts Self-Destructed . | . . . . . . . . . . . . Prevented . | . . . . . . . . . . . . Kills | -11 -10 -10 -9 -9 -9 -8 -8 -8 -7 -7 -6 ------- Run | Yrd Mat Min Mat Min Exi Min Mat Gar Fac DSF Fac Combat Hostiles Destroyed 46 | . 8 3 12 6 . 15 . 2 . . . Guns 44 | . 8 3 11 5 . 15 . 2 . . . AOE 2 | . . . 1 1 . . . . . . . Classes Destroyed 12 | . 4 1 4 1 . 2 . . . . . Worker 1 | . . . . . . 1 . . . . . Builder 4 | . 1 . . . . 3 . . . . . Hauler 1 | . 1 . . . . . . . . . . Recycler 2 | . . . 1 1 . . . . . . . Operator 1 | . . . 1 . . . . . . . . Watcher 1 | . 1 . . . . . . . . . . Swarmer 15 | . . 3 6 . . 6 . . . . . Grunt 22 | . 8 . 2 3 . 8 . 1 . . . Brawler 1 | . . . . 1 . . . . . . . Duelist 2 | . . . 1 1 . . . . . . . Sentry 3 | . . . 3 . . . . . . . . Hunter 2 | . . . . . . 1 . 1 . . . Thug 1 | . . 1 . . . . . . . . . Best Kill Streak 7 | . 3 3 7 4 . 4 . 1 . . . Combat Bots Only 5 | . 2 3 5 3 . 3 . 1 . . . Max Kills in Single Turn 2 | . 1 2 2 1 . 1 . 1 . . . Gunslinging 1 | . . . 1 . . . . . . . . Exploded 1 | . . . 1 1 . . . . . . . Melee . | . . . . . . . . . . . . Uniques/NPCs Destroyed 1 | . . . . 1 . . . . . . . YI-UF0 (-9/Mines) Combat | -11 -10 -10 -9 -9 -9 -8 -8 -8 -7 -7 -6 -------- Run | Yrd Mat Min Mat Min Exi Min Mat Gar Fac DSF Fac Hostile Shots Fired 329 | . 42 21 74 42 . 67 . 66 . 17 . Missed 87 | . 15 5 15 12 . 24 . 10 . 6 . Damage Taken 3780 | . 335 177 635 692 . 554 . 915 . 472 . Core 1285 | . 44 78 199 120 . 71 . 417 . 356 . Absorbed by Shields 8 | . . . . . . 8 . . . . . Redirected to Shielding 86 | . . . 26 29 . . . . . 31 . Core Remaining (%) 45 | 100 . 51 . . . 2 . 24 . 49 . Volleys Fired 143 | . 41 10 36 22 . 17 . 17 . . . Largest 2 | . 2 2 2 2 . 1 . 1 . . . Hottest 138 | . 60 40 138 138 . 69 . 69 . . . Shots Fired 311 | . 80 20 66 36 . 87 . 22 . . . Gun 303 | . 80 20 62 32 . 87 . 22 . . . Cannon . | . . . . . . . . . . . . Launcher 8 | . . . 4 4 . . . . . . . Special . | . . . . . . . . . . . . Kinetic 152 | . 57 20 . . . 70 . 5 . . . Thermal 108 | . . . 47 27 . 17 . 17 . . . Explosive 8 | . . . 4 4 . . . . . . . Electromagnetic 43 | . 23 . 15 5 . . . . . . . Robot Hit Streak 28 | . 6 6 22 8 . 28 . 6 . . . Robot Miss Streak 12 | . 3 1 12 2 . 3 . 1 . . . Penetration Max . | . . . . . . . . . . . . Secondary Targets 5 | . 1 1 1 2 . . . . . . . Max Gunslinging Chain 1 | . 1 1 1 1 . . . . . . . Autonomous 76 | . . . . . . 70 . 6 . . . Shots Hit Robots 209 | . 49 8 44 22 . 69 . 17 . . . Core Hits 88 | . 22 5 19 11 . 25 . 6 . . . Critical Kills 1 | . . . . . . 1 . . . . . Critical Parts Destroyed . | . . . . . . . . . . . . Critical Strikes 8 | . . . 4 2 . 1 . 1 . . . Burn 7 | . . . 4 2 . . . 1 . . . Destroy 1 | . . . . . . 1 . . . . . Melee Attacks . | . . . . . . . . . . . . Impact . | . . . . . . . . . . . . Slashing . | . . . . . . . . . . . . Piercing . | . . . . . . . . . . . . Sneak Attacks . | . . . . . . . . . . . . Combat Hostiles . | . . . . . . . . . . . . Follow-up Attacks . | . . . . . . . . . . . . Damage Inflicted 4293 | . 603 118 995 386 . 1829 . 362 . . . Guns 4039 | . 603 118 794 353 . 1828 . 343 . . . Cannons . | . . . . . . . . . . . . Explosions 232 | . . . 199 33 . . . . . . . Melee . | . . . . . . . . . . . . Ramming 22 | . . . 2 . . 1 . 19 . . . Kinetic 2150 | . 336 118 . . . 1576 . 120 . . . Thermal 1374 | . . . 576 323 . 252 . 223 . . . Explosive 210 | . . . 177 33 . . . . . . . Electromagnetic 537 | . 267 . 240 30 . . . . . . . Impact . | . . . . . . . . . . . . Slashing . | . . . . . . . . . . . . Piercing . | . . . . . . . . . . . . Highest Corruption 12 | . . 12 . . . . . 5 . . . Average Corruption 4 | . . 5 . . . . . 4 . . . Corruption Purged . | . . . . . . . . . . . . Corruption Blocked . | . . . . . . . . . . . . Effects 2 | . . 1 . . . . . 1 . . . Message Errors 1 | . . . . . . . . 1 . . . Matter Fused 1 | . . 1 . . . . . . . . . Overload Shots . | . . . . . . . . . . . . Overflow Damage . | . . . . . . . . . . . . Projectiles . | . . . . . . . . . . . . Explosions . | . . . . . . . . . . . . Melee . | . . . . . . . . . . . . Knockbacks 1 | . . . . . . . . 1 . . . Impact 1 | . . . . . . . . 1 . . . Kinetic . | . . . . . . . . . . . . Secondary . | . . . . . . . . . . . . Self-Inflicted Damage 8 | . . . . . . . . 8 . . . Shots . | . . . . . . . . . . . . Rammed 8 | . . . . . . 1 . 7 . . . Targets Rammed 10 | . . . 2 . . 1 . 7 . . . Kicked 2 | . . . 2 . . . . . . . . Crushed . | . . . . . . . . . . . . Highest Temperature 807 | . 130 12 807 489 . 288 . 298 . . . Average Temperature 143 | . 48 5 211 194 . 110 . 161 . . . Received Heat Transfer 915 | . 195 . 57 96 . 207 . 360 . . . Effects 25 | . . . 22 3 . . . . . . . Shutdowns 4 | . . . 3 1 . . . . . . . Energy Bleed 6 | . . . 5 1 . . . . . . . Interference 1 | . . . 1 . . . . . . . . Matter Decay 2 | . . . 1 1 . . . . . . . Short Circuit 1 | . . . 1 . . . . . . . . Damage (minor) 1 | . . . 1 . . . . . . . . Damage (major) 8 | . . . 8 . . . . . . . . Damage (core) 2 | . . . 2 . . . . . . . . Siege Activations . | . . . . . . . . . . . . Robots Corrupted . | . . . . . . . . . . . . Combat Hostiles . | . . . . . . . . . . . . Parts Fried 2 | . 1 . 1 . . . . . . . . Impact Corruptions . | . . . . . . . . . . . . Robots Melted . | . . . . . . . . . . . . Combat Hostiles . | . . . . . . . . . . . . Parts Melted 5 | . . . 4 1 . . . . . . . Heat Transferred 3195 | . . . 1419 777 . 481 . 518 . . . Parts Sabotaged . | . . . . . . . . . . . . Parts Stolen . | . . . . . . . . . . . . Parts Stripped . | . . . . . . . . . . . . Power Chain Reactions 1 | . . . 1 . . . . . . . . Alert | -11 -10 -10 -9 -9 -9 -8 -8 -8 -7 -7 -6 ------- Run | Yrd Mat Min Mat Min Exi Min Mat Gar Fac DSF Fac Peak Influence 200 | . 137 70 177 197 . 121 26 200 105 73 32 Initial 105 | . . . . 67 . . 26 19 105 73 32 Average 44 | . 40 23 67 113 . 33 26 67 105 70 32 Maximum Alert Level 1 | . . . . . . . . 1 . . . Low Security (%) 99 | 100 100 100 100 100 . 100 100 95 100 100 100 Level 1 . | . . . . . . . . 4 . . . Level 2 . | . . . . . . . . . . . . Level 3 . | . . . . . . . . . . . . Level 4 . | . . . . . . . . . . . . Level 5 . | . . . . . . . . . . . . High Security . | . . . . . . . . . . . . Max Security . | . . . . . . . . . . . . Squads Dispatched 5 | . 2 . 1 . . . . . . 1 1 Investigation 4 | . 2 . 1 . . . . . . . 1 Extermination . | . . . . . . . . . . . . Reinforcement 1 | . . . . . . . . . . 1 . Assault . | . . . . . . . . . . . . Garrison . | . . . . . . . . . . . . Intercept . | . . . . . . . . . . . . Searches Triggered . | . . . . . . . . . . . . Construction Impeded . | . . . . . . . . . . . . Haulers Reinforced . | . . . . . . . . . . . . Active Scanning Responses . | . . . . . . . . . . . . Cargo Convoy Interrupts . | . . . . . . . . . . . . Stealth | -11 -10 -10 -9 -9 -9 -8 -8 -8 -7 -7 -6 --------- Run | Yrd Mat Min Mat Min Exi Min Mat Gar Fac DSF Fac Distress Signals 1 | . 1 . . . . . . . . . . Communications Jammed . | . . . . . . . . . . . . Distress Signals . | . . . . . . . . . . . . Times Spotted 68 | . 11 3 18 7 . 18 . 8 . 3 . Peak Tracking Total 7 | . 3 3 7 2 . 4 . 5 . 3 . Tactical Retreats 6 | . . . . . . 2 . 4 . . . Traps | -11 -10 -10 -9 -9 -9 -8 -8 -8 -7 -7 -6 ------- Run | Yrd Mat Min Mat Min Exi Min Mat Gar Fac DSF Fac Traps Triggered 4 | . 2 1 1 . . . . . . . . Indirectly . | . . . . . . . . . . . . Trap Hack Attempts . | . . . . . . . . . . . . Triggered . | . . . . . . . . . . . . Disarmed . | . . . . . . . . . . . . Reprogrammed . | . . . . . . . . . . . . Reused . | . . . . . . . . . . . . Traps Extracted . | . . . . . . . . . . . . Installed . | . . . . . . . . . . . . Triggered . | . . . . . . . . . . . . Machines | -11 -10 -10 -9 -9 -9 -8 -8 -8 -7 -7 -6 ---------- Run | Yrd Mat Min Mat Min Exi Min Mat Gar Fac DSF Fac Machines Disabled 3 | . . . 3 . . . . . . . . Max in Single Turn 2 | . . . 2 . . . . . . . . Machines Repaired . | . . . . . . . . . . . . Machines Dismantled . | . . . . . . . . . . . . Machines Sabotaged . | . . . . . . . . . . . . Overloaded Fab Kills . | . . . . . . . . . . . . Hacking | -11 -10 -10 -9 -9 -9 -8 -8 -8 -7 -7 -6 --------- Run | Yrd Mat Min Mat Min Exi Min Mat Gar Fac DSF Fac Machines Accessed 17 | . 5 1 6 . . . 1 2 1 . 1 Terminals 14 | . 5 . 5 . . . . 2 1 . 1 Fabricators . | . . . . . . . . . . . . Repair Stations . | . . . . . . . . . . . . Recycling Units 1 | . . . 1 . . . . . . . . Scanalyzers . | . . . . . . . . . . . . Garrison Access 1 | . . . . . . . 1 . . . . Total Hacks 40 | . 13 1 20 . . . 1 2 1 . 2 Successful 18 | . 4 1 9 . . . 1 2 1 . . Failed 22 | . 9 . 11 . . . . . . . 2 Catastrophic 2 | . 1 . 1 . . . . . . . . Database Lockouts . | . . . . . . . . . . . . Manual 22 | . 10 . 8 . 1 . . . . . 3 Terminals 33 | . 13 . 15 . . . . 2 1 . 2 Fabricators . | . . . . . . . . . . . . Repair Stations . | . . . . . . . . . . . . Recycling Units 5 | . . . 5 . . . . . . . . Scanalyzers . | . . . . . . . . . . . . Garrison Access 1 | . . . . . . . 1 . . . . Terminal Hacks 12 | . 3 1 5 . . . . 2 1 . . Open Door 1 | . . 1 . . . . . . . . . Open DSF 1 | . . . . . . . . . 1 . . Branch Access Points 1 | . 1 . . . . . . . . . . Emergency Access Points 1 | . . . . . . . . 1 . . . Terminal Index 1 | . . . 1 . . . . . . . . Alert Level 1 | . . . 1 . . . . . . . . Unreport Threat 4 | . 2 . 2 . . . . . . . . Zone Layout 1 | . . . 1 . . . . . . . . Security Stations 1 | . . . . . . . . 1 . . . Fabricator Hacks . | . . . . . . . . . . . . Repair Station Hacks . | . . . . . . . . . . . . Recycling Unit Hacks 1 | . . . 1 . . . . . . . . Retrieve Components 1 | . . . 1 . . . . . . . . Scanalyzer . | . . . . . . . . . . . . Garrison Access Hacks 1 | . . . . . . . 1 . . . . Unlock Access 1 | . . . . . . . 1 . . . . Unauthorized Hacks 4 | . 1 . 3 . . . . . . . . Terminals 4 | . 1 . 3 . . . . . . . . Botnet 4 | . 1 . 3 . . . . . . . . Fabricators . | . . . . . . . . . . . . Repair Stations . | . . . . . . . . . . . . Recycling Units . | . . . . . . . . . . . . Scanalyzers . | . . . . . . . . . . . . Garrison Access . | . . . . . . . . . . . . Data Cores Recovered 1 | . . . 1 . . . . . . . . Used 1 | . . . 1 . . . . . . . . Hacking Detections 11 | . 3 . 5 . . . . 1 1 . 1 Full Trace Events 2 | . . . 1 . . . . . . . 1 Feedback Events . | . . . . . . . . . . . . Feedback Blocked . | . . . . . . . . . . . . Robot Schematics Acquired . | . . . . . . . . . . . . Robots Built . | . . . . . . . . . . . . Authchips . | . . . . . . . . . . . . Time . | . . . . . . . . . . . . Total Robot Build Rating . | . . . . . . . . . . . . Part Schematics Acquired . | . . . . . . . . . . . . Parts Built . | . . . . . . . . . . . . Authchips . | . . . . . . . . . . . . Time . | . . . . . . . . . . . . Total Part Build Rating . | . . . . . . . . . . . . Parts Repaired . | . . . . . . . . . . . . Time . | . . . . . . . . . . . . Parts Recycled . | . . . . . . . . . . . . Recycled Matter . | . . . . . . . . . . . . Retrieved Matter . | . . . . . . . . . . . . Retrieved Components 9 | . . . 9 . . . . . . . . Parts Scanalyzed . | . . . . . . . . . . . . Part Schematics Acquired . | . . . . . . . . . . . . Parts Damaged . | . . . . . . . . . . . . Bothacking | -11 -10 -10 -9 -9 -9 -8 -8 -8 -7 -7 -6 ------------ Run | Yrd Mat Min Mat Min Exi Min Mat Gar Fac DSF Fac Used RIF Installer . | . . . . . . . . . . . . Robots Hacked . | . . . . . . . . . . . . Non-combat . | . . . . . . . . . . . . Combat . | . . . . . . . . . . . . Robot Hacks Applied . | . . . . . . . . . . . . Relay Couplers Released . | . . . . . . . . . . . . Fabnet Peak Effective % . | . . . . . . . . . . . . Robots Rewired . | . . . . . . . . . . . . Allies Hacked . | . . . . . . . . . . . . Hacks Repelled . | . . . . . . . . . . . . Allies | -11 -10 -10 -9 -9 -9 -8 -8 -8 -7 -7 -6 -------- Run | Yrd Mat Min Mat Min Exi Min Mat Gar Fac DSF Fac Total Allies . | . . . . . . . . . . . . Largest Group . | . . . . . . . . . . . . Highest-Rated Group . | . . . . . . . . . . . . Highest-Rated Ally . | . . . . . . . . . . . . Total Orders . | . . . . . . . . . . . . Ally Attacks . | . . . . . . . . . . . . Total Damage . | . . . . . . . . . . . . Kills . | . . . . . . . . . . . . Allies Corrupted . | . . . . . . . . . . . . Allies Melted . | . . . . . . . . . . . . Intel | -11 -10 -10 -9 -9 -9 -8 -8 -8 -7 -7 -6 ------- Run | Yrd Mat Min Mat Min Exi Min Mat Gar Fac DSF Fac Robot Analysis Total . | . . . . . . . . . . . . Derelict Logs Recovered . | . . . . . . . . . . . . Drone Launches . | . . . . . . . . . . . . Drone Recoveries . | . . . . . . . . . . . . Exploration | -11 -10 -10 -9 -9 -9 -8 -8 -8 -7 -7 -6 ------------- Run | Yrd Mat Min Mat Min Exi Min Mat Gar Fac DSF Fac Turns Passed 7399 | 3 436 600 607 516 509 4308 42 260 26 74 18 Spaces Moved 1990 | 3 250 358 313 248 239 231 17 173 37 86 35 Core 357 | . . . 1 . . 85 . 113 37 86 35 Treads 591 | . . . 16 248 239 88 . . . . . Legs 907 | 3 250 358 296 . . . . . . . . Wheels 135 | . . . . . . 58 17 60 . . . Hover . | . . . . . . . . . . . . Flight . | . . . . . . . . . . . . Fastest Speed 50 | 120 120 120 120 160 160 230 230 50 50 50 50 Average Speed 329 | 120 120 120 128 160 213 1796 232 118 67 81 50 Slowest Speed 3800 | 120 120 120 400 160 560 3800 245 380 100 100 50 Overloaded Moves . | . . . . . . . . . . . . Propulsion Burnouts . | . . . . . . . . . . . . Robots Hopped . | . . . . . . . . . . . . Cave-ins Triggered . | . . . . . . . . . . . . Exploration Rate (%) 37 | 1 48 64 37 53 68 55 6 28 1 90 2 Regions Visited 11 Branch Regions 4 Pre-discovered Areas . | . . . . . . . . . . . . Known Exits Taken 3 | . 1 . . . . . 1 . 1 . . Unknown Exits Taken 6 | 1 . 1 1 1 1 1 . . . . . Scrap Searched 3 | . . 1 . . . 2 . . . . . Spaces Dug . | . . . . . . . . . . . . Terrain Destroyed 98 | . . . 26 18 . 53 . 1 . . . Melee . | . . . . . . . . . . . . Projectile 54 | . . . . . . 53 . 1 . . . AOE 44 | . . . 26 18 . . . . . . . Terrain Rammed . | . . . . . . . . . . . . Walls Destroyed . | . . . . . . . . . . . . Machines Disabled . | . . . . . . . . . . . . Actions | -11 -10 -10 -9 -9 -9 -8 -8 -8 -7 -7 -6 --------- Run | Yrd Mat Min Mat Min Exi Min Mat Gar Fac DSF Fac Total 2605 | 2 314 513 455 331 242 363 19 206 37 88 35 Wait 386 | . 15 131 73 51 . 106 . 8 . 2 . Move 1980 | 2 249 357 312 247 238 230 17 172 36 85 35 Hop . | . . . . . . . . . . . . Pick Up 7 | . 2 1 2 1 . 1 . . . . . Fast Attach 23 | . 1 3 8 2 2 5 . . 1 1 . Attach 15 | . 2 1 4 5 . 1 1 1 . . . Detach 10 | . 1 2 3 1 . 2 1 . . . . Swap 8 | . 2 1 4 1 . . . . . . . Drop 23 | . 1 7 11 1 2 . . 1 . . . Fire 143 | . 41 10 36 22 . 17 . 17 . . . Melee . | . . . . . . . . . . . . Ram 7 | . . . . . . . . 7 . . . Kick 2 | . . . 2 . . . . . . . . Crush 1 | . . . . . . 1 . . . . . Escape Stasis . | . . . . . . . . . . . . Rewire . | . . . . . . . . . . . . Trap . | . . . . . . . . . . . . Miscellaneous . | . . . . . . . . . . . . Route ------- -11/Scrapyard -10/Materials (discovered 3 exits: *Mat x2 / *Min) -10/Mines -9/Materials (discovered 2 exits: [*Min x2]) -9/Mines (discovered 2 exits: *Exi / [*Zio]) -9/Exiles (discovered 2 exits: [*Min x2]) -8/Mines -8/Materials -8/Garrison -7/Factory -7/DSF -6/Factory History --------- Turn | Location | Event 1 | -11/Scrapyard | Discovered new exit (range 0) 4 | -11/Scrapyard | Entered Materials 146 | -10/Materials | Discovered new exit (range 10) 203 | -10/Materials | Discovered new exit (range 15) 222 | -10/Materials | Identified exit to Mines 309 | -10/Materials | Build established: Mutant 440 | -10/Materials | Entered Mines 503 | -10/Mines | Met a Derelict bent on vengeance 979 | -10/Mines | Discovered new exit (range 15) 1008 | -10/Mines | Met a Derelict who couldn't figure out how to use a Trap Extractor 1034 | -10/Mines | System corruption reached 10% 1040 | -10/Mines | Entered Materials 1040 | -9/Materials | Evolved 2 slots: Utility x2 1115 | -9/Materials | Discovered new exit (range 16) 1627 | -9/Materials | Discovered new exit (range 8) 1647 | -9/Materials | Entered Mines 1650 | -9/Mines | Core integrity fell below 50% 1747 | -9/Mines | A Derelict revealed a hidden shortcut to a safe place 1922 | -9/Mines | YI-UF0 nonchalantly dropped a Grenade Launcher on the ground 1940 | -9/Mines | Destroyed YI-UF0 1969 | -9/Mines | Lost 4 parts (1u3w) 2157 | -9/Mines | Deemed a non-threat by the Exiles lab entrance 2157 | -9/Mines | Discovered new exit (range 5) 2163 | -9/Mines | Entered Exiles 2191 | -9/Exiles | Discovered new exit (range 19) 2205 | -9/Exiles | Met 8R-AWN 2232 | -9/Exiles | Met EX-HEX 2279 | -9/Exiles | Met EX-BIN 2306 | -9/Exiles | Aligned with FarCom system 2307 | -9/Exiles | Given EX-Vault access code 2344 | -9/Exiles | Opened EX-Vault 2353 | -9/Exiles | Found Prototype Ballistic Gun 2353 | -9/Exiles | Identified AWS/Gauss 2389 | -9/Exiles | Warned to stay clear of 0b10 Research branches 2429 | -9/Exiles | Met EX-DEC 2611 | -9/Exiles | Discovered new exit (range 12) 2672 | -9/Exiles | Left Exiles lab with AWS/Gauss 2672 | -9/Exiles | Entered Mines 2681 | -8/Mines | Core integrity fell below 20% 2803 | -8/Mines | Build established: Hauler-Mutant 6962 | -8/Mines | Discovered new exit (range 8) 6980 | -8/Mines | Entered Materials 6980 | -8/Materials | Evolved 2 slots: Propulsion x2 7022 | -8/Materials | Identified exit to Garrison 7022 | -8/Materials | Entered Garrison 7103 | -8/Garrison | Learned Factory security intel 7139 | -8/Garrison | AWS/Gauss suddenly broke down 7220 | -8/Garrison | Core integrity fell below 50% 7233 | -8/Garrison | Triggered checkpoint 7250 | -8/Garrison | Discovered new exit (range 11) 7256 | -8/Garrison | Lost 7 parts (1p2n3u1w) 7282 | -8/Garrison | Entered Factory 7282 | -7/Factory | Evolved 2 slots: Utility x1, Weapon x1 7288 | -7/Factory | Identified exit to DSF 7308 | -7/Factory | Entered DSF 7366 | -7/DSF | Additional patrols routed to DSF 7370 | -7/DSF | Core integrity fell below 50% 7371 | -7/DSF | Discovered new exit (range 15) 7382 | -7/DSF | Entered Factory 7382 | -6/Factory | Evolved 2 slots: Power x1, Utility x1 7400 | -6/Factory | Self-destructed Last Messages --------------- 07352_ Slug penetrates Wall. 07354_ Acquired Imp. Core Shielding. 07355_ Knocked back. 07356_ Acquired 9 matter. 07357_ Penetrated by Slug. 07357_ Knocked back. 07363_ Gatling Laser destroyed. 07363_ Imp. Core Shielding blasted off. 07366_ Hostiles detected in DSF, routing additional patrols. 07369_ Knocked back. 07371_ EXIT=FOUND PARAMETERS=POWER+1,UTILITY+1 LOCATION=UNKNOWN GOAL=ESCAPE 07382_ Receiving FarCom transmissions... 07400_ Connecting with Terminal... 07400_ Current location identified: Factory 07400_ ALERT: Suspicious activity at Terminal F010. Dispatching Investigation squad. Map ----- +----------------------------------------------------+ | ?????????? ""??????????????????????????????????? | | ?????????? ?????????????????????????????????? | | ?????????# ] ?????????????????????????????????? | | ?????????# #?????????????????????????????????? | | ?????????# #?????????????????????????????????? | | ?????????# #?????????????????????????????????? | | ?????????# #?????????????????????????????????? | | ?????????# #?????????????????????????????????? | | ?????????# +?????????????????????????????????? | | ?????????# #?????????????????????????????????? | | ?????????# #?????????????????????????????????? | | ???????### #################+????????????????? | | ???????# ???????????????? | | ???????# ???????????????? | | ???????# ??????????????? | | ???????# ??????????????? | | ???????# ??????????????? | | ??????#####+######+###########???????????????????? | | ??????# # #???????????????????? | | ??????# # """ """ #???????????????????? | | ??????# # """ """ #???????????????????? | | ??????# # """ """ #???????????????????? | | ??????# # #???????????????????? | | ??????# # """ """ #???????????????????? | | ??????# # """ """ "" #???????????????????? | | ??????# # """ """@"" #???????????????????? | | ??????########### T" #???????????????????? | | ????????????????# "" #???????????????????? | | ????????????????# "" #???????????????????? | | ????????????????# #???????????????????? | | ????????????????##############???????????????????? | | ?????????????????????????????????????????????????? | | ?????????????????????????????????????????????????? | | ?????????????????????????????????????????????????? | | ?????????????????????????????????????????????????? | | ?????????????????????????????????????????????????? | | ?????????????????????????????????????????????????? | | ?????????????????????????????????????????????????? | | | | | | | | | | | | | | | | | | | | | | | | | +----------------------------------------------------+ Best States ------------- Heat Dissipation 38 Energy Generation 18 Energy Capacity 280 Matter Stores 300 Matter Capacity 300 Sight Range 20 Terrain Scan Density 10 Armor Coverage 225 Core Shielding 30 Utility Shielding 66 Evasion (%) 55 Recoil Reduction 2 Item Schematics ----------------- None Robot Schematics ------------------ None Fabricated ------------ Nothing Alien Tech Used ----------------- None Achievements -------------- None Challenges ------------ None Game ------ Seed ColdMeleeReplica Manual? 0 Play Time 00:39:48 Cumulative 35.4 hours Start 2024.10.18 @ 04:48:23 End 2024.10.18 @ 05:57:59 Sessions 3 Manual Loads 0 Difficulty Rogue Special Mode None Game No. 37 Rogue 19 Adventurer 16 Explorer 2 Win Type - Total 1 Types 1/0/0/0/0/0/0/0/0 Lore% 10 Gallery% 34 Achievement% 33 Wizard Run 0 Options --------- Layout 2 ASCII 0 Keyboard 0 Movement Mouse Keybinds 1 Fullscreen 2 Font 24/Terminus Map View 50x44 Zoom Use 0% Tactical HUD 1 Map Filters NONE Filters NONE Steam 1 RUN: 530ec0d2-9da6-4b3e-902e-c8d15eede28a